﻿Department family,Entity,Date,Expense type,Expense area,Supplier,Transaction number,Amount,Description,Supplier Postcode,
Families & Specialist Services,Radiology,30/06/2022,Contractual Clinical Services,Rad General,4 Ways Healthcare Ltd,4WHC/01230008,"33,656.40 ",Outsourcied teleradiology reporting,HP2 7BF,
Families & Specialist Services,Radiology,30/06/2022,Contractual Clinical Services,Rad General,4 Ways Healthcare Ltd,4WHC/02230627,"25,405.65 ",Outsourcied teleradiology reporting,HP2 7BF,
Balance Sheet,L2 Current Assets,10/06/2022,Finished Processed Goods,Stock & Work In Progress,Aah Pharmaceuticals Ltd,64605758E,"37,252.80 ",Pharmaceutical purchase,CV2 2ZG,
Balance Sheet,L2 Current Assets,17/06/2022,Finished Processed Goods,Stock & Work In Progress,Aah Pharmaceuticals Ltd,64872909S,"36,487.80 ",Pharmaceutical purchase,CV2 2ZG,
Pmu,Pmu,01/06/2022,Drugs,Pmu,Aah Pharmaceuticals Ltd,74831764E,"26,312.40 ",Pharmaceutical purchase,CV2 2ZG,
Pmu,Pmu,01/06/2022,Drugs,Pmu,Alliance Healthcare Distribution Ltd,F1B451331,"32,205.60 ",Pharmaceutical purchase,KT9 1SN,
Pmu,Pmu,01/06/2022,Drugs,Pmu,Alliance Healthcare Distribution Ltd,F1BA54918,"35,280.00 ",Pharmaceutical purchase,KT9 1SN,
Balance Sheet,L2 Current Assets,01/06/2022,Finished Processed Goods,Stock & Work In Progress,Alliance Healthcare Distribution Ltd,F25454661,"55,248.62 ",Pharmaceutical purchase,KT9 1SN,
Pmu,Pmu,10/06/2022,Drugs,Pmu,Alliance Healthcare Distribution Ltd,F25B51951,"66,737.35 ",Pharmaceutical purchase,KT9 1SN,
Balance Sheet,L2 Current Assets,24/06/2022,Finished Processed Goods,Stock & Work In Progress,Alliance Healthcare Distribution Ltd,F25U52050,"55,423.92 ",Pharmaceutical purchase,KT9 1SN,
Balance Sheet,L2 Current Assets,17/06/2022,Finished Processed Goods,Stock & Work In Progress,Alliance Healthcare Distribution Ltd,F25W54528,"75,887.28 ",Pharmaceutical purchase,KT9 1SN,
Corporate Services,Service Performance,10/06/2022,Contract : Other External,Properties,Amas Ltd,00310-202200074,"3,270.00",Service Charge on Account 24/06/2022-28/09/2022,E14 5WQ,
Balance Sheet,L2 Long Term Creditors,10/06/2022,Lease Liabilities under IFRS 16 > 1 year,Finance Leases,Amas Ltd,00310-202200074,"65,375.00",Rental Income 24/06/2022-28/09/2022,E14 5WQ,
Corporate Services,Quality,01/06/2022,Computer Software / License  Fees,Quality,Baxter Healthcare Ltd,22068281,"40,890.18 ",IC Net Upgrade - Annual Licence and Consultancy Year 5 1 April 2022 - 31 March 2023,RG20 7QW,
Balance Sheet,L2 Current Assets,01/06/2022,Finished Processed Goods,Stock & Work In Progress,Bayer Plc,824C415719,"27,373.68 ",Pharmaceutical purchase,RG2 6AD,
Balance Sheet,L2 Current Assets,01/06/2022,Finished Processed Goods,Stock & Work In Progress,Bayer Plc,824C415720,"29,654.82 ",Pharmaceutical purchase,RG2 6AD,
Balance Sheet,L2 Current Assets,01/06/2022,Finished Processed Goods,Stock & Work In Progress,Bayer Plc,824C415928,"27,373.68 ",Pharmaceutical purchase,RG2 6AD,
Balance Sheet,L2 Current Assets,01/06/2022,Finished Processed Goods,Stock & Work In Progress,Bayer Plc,824C416453,"29,654.83 ",Pharmaceutical purchase,RG2 6AD,
Balance Sheet,L2 Current Assets,10/06/2022,Finished Processed Goods,Stock & Work In Progress,Bayer Plc,824C417229,"29,654.83 ",Pharmaceutical purchase,RG2 6AD,
Balance Sheet,L2 Current Assets,17/06/2022,Finished Processed Goods,Stock & Work In Progress,Bayer Plc,824C419147,"27,373.68 ",Pharmaceutical purchase,RG2 6AD,
Balance Sheet,L2 Current Assets,17/06/2022,Finished Processed Goods,Stock & Work In Progress,Bayer Plc,824C419601,"29,654.82 ",Pharmaceutical purchase,RG2 6AD,
Balance Sheet,L2 Current Assets,17/06/2022,Finished Processed Goods,Stock & Work In Progress,Bayer Plc,824C419826,"27,373.68 ",Pharmaceutical purchase,RG2 6AD,
Balance Sheet,L2 Current Assets,24/06/2022,Finished Processed Goods,Stock & Work In Progress,Bayer Plc,824C420785,"29,654.82 ",Pharmaceutical purchase,RG2 6AD,
Balance Sheet,L2 Current Assets,24/06/2022,Finished Processed Goods,Stock & Work In Progress,Bayer Plc,824C420915,"27,373.68 ",Pharmaceutical purchase,RG2 6AD,
Families & Specialist Services,Pathology,17/06/2022,Laboratory Test Kits,Microbiology,Becton Dickinson UK Ltd,220020294,"29,035.13 ",Laboratory managed Service for non-CoVID,RG41 5TS,
Central & Technical,Tech Accounting,17/06/2022,Laboratory Test Kits,Tech Accounting,Becton Dickinson UK Ltd,220030740,"55,008.29 ",Laboratory managed Service CoVID ,RG41 5TS,
Central & Technical,Tech Accounting,17/06/2022,Laboratory Test Kits,Tech Accounting,Becton Dickinson UK Ltd,220031569,"55,008.29 ",Laboratory managed Service Covid Testing ,RG41 5TS,
Central & Technical,Tech Accounting,17/06/2022,Laboratory Test Kits,Tech Accounting,Becton Dickinson UK Ltd,220031570,"55,008.29 ",Laboratory managed Service Covid Testing ,RG41 5TS,
Central & Technical,Tech Accounting,17/06/2022,Laboratory Test Kits,Tech Accounting,Becton Dickinson UK Ltd,220031571,"55,008.29 ",Laboratory managed Service Covid Testing ,RG41 5TS,
Central & Technical,Tech Accounting,17/06/2022,Laboratory Test Kits,Tech Accounting,Becton Dickinson UK Ltd,220031572,"55,008.29 ",Laboratory managed Service Covid Testing ,RG41 5TS,
Central & Technical,Tech Accounting,17/06/2022,Laboratory Test Kits,Tech Accounting,Becton Dickinson UK Ltd,220031573,"55,008.29 ",Laboratory managed Service Covid Testing ,RG41 5TS,
Central & Technical,Tech Accounting,17/06/2022,Laboratory Test Kits,Tech Accounting,Becton Dickinson UK Ltd,220032162,"110,016.58 ",Laboratory managed Service Covid Testing ,RG41 5TS,
Central & Technical,Tech Accounting,17/06/2022,Laboratory Test Kits,Tech Accounting,Becton Dickinson UK Ltd,220032163,"53,754.05 ",Laboratory managed Service Covid Testing ,RG41 5TS,
Central & Technical,Tech Accounting,17/06/2022,Laboratory Test Kits,Tech Accounting,Becton Dickinson UK Ltd,220032165,"55,008.29 ",Laboratory managed Service Covid Testing ,RG41 5TS,
Central & Technical,Tech Accounting,17/06/2022,Laboratory Test Kits,Tech Accounting,Becton Dickinson UK Ltd,220032166,"55,008.29 ",Laboratory managed Service Covid Testing ,RG41 5TS,
Central & Technical,Tech Accounting,17/06/2022,Laboratory Test Kits,Tech Accounting,Becton Dickinson UK Ltd,220032167,"47,714.40 ",Laboratory managed Service Covid Testing ,RG41 5TS,
Central & Technical,Tech Accounting,17/06/2022,Laboratory Test Kits,Tech Accounting,Becton Dickinson UK Ltd,220032168,"47,714.40 ",Laboratory managed Service Covid Testing ,RG41 5TS,
Central & Technical,Tech Accounting,17/06/2022,Laboratory Test Kits,Tech Accounting,Becton Dickinson UK Ltd,220032169,"47,410.27 ",Laboratory managed Service Covid Testing ,RG41 5TS,
Central & Technical,Tech Accounting,17/06/2022,Laboratory Test Kits,Tech Accounting,Becton Dickinson UK Ltd,220032174,"55,008.29 ",Laboratory managed Service Covid Testing ,RG41 5TS,
Central & Technical,Tech Accounting,17/06/2022,Laboratory Test Kits,Tech Accounting,Becton Dickinson UK Ltd,220032325,"55,008.29 ",Laboratory managed Service Covid Testing ,RG41 5TS,
Families & Specialist Services,Outpatients & Records Services,17/06/2022,Med Surg Eqpt General,Outpatients Dept,Bioventus Cooperatief U.A.,95713729,"26,568.00 ",bone stimulators,HOOFDDORP.,
Surgery & Anaesthetics,Surgical Divisional Support,30/06/2022,Contractual Clinical Services,Independent Sector,Bmi Healthcare Ltd,S5712FEB22,"94,045.97 ",Provision of Elective Activity ,SK3 0XN,
Balance Sheet,L2 Current Assets,01/06/2022,Finished Processed Goods,Stock & Work In Progress,Bristol Myers Squibb Pharmaceuticals Ltd,100684092,"36,101.52 ",Pharmaceutical purchase,CH4 9QW,
Surgery & Anaesthetics,Surgical Divisional Support,14/06/2022,Healthcare From Commercial Sector,Support Services,Calderdale And Huddersfield Orthopaedic Partnership Llp,2022-24,"155,606.62 ",Provision of Orthopaedic and/or speciality healthcare services,LS8 2JH,
Surgery & Anaesthetics,Surgical Divisional Support,14/06/2022,Healthcare From Commercial Sector,Elective Recovery,Calderdale And Huddersfield Orthopaedic Partnership Llp,CN-0031,"-55,593.35 ",Provision of Orthopaedic and/or speciality healthcare services,LS8 2JH,
Surgery & Anaesthetics,Surgical Divisional Support,10/06/2022,Healthcare From Commercial Sector,Elective Recovery,Calderdale And Huddersfield Orthopaedic Partnership Llp,INV-0034,"41,126.77 ",Provision of Orthopaedic and/or speciality healthcare services,LS8 2JH,
Surgery & Anaesthetics,Surgical Divisional Support,23/06/2022,Healthcare From Commercial Sector,Support Services,Calderdale And Huddersfield Orthopaedic Partnership Llp,INV-0039,"70,026.51 ",Provision of Orthopaedic and/or speciality healthcare services,LS8 2JH,
Corporate Services,Service Performance,17/06/2022,External Contracts : Catering,Pfi,Calderdale Hospital Spc Ltd,3650,"47,135.71 ",Additional variations,M20 2YY,
Corporate Services,Service Performance,21/06/2022,Contract : Other External,Pfi,Calderdale Hospital Spc Ltd,3653,"3,048,810.49 ",PFI contract monthly payment,M20 2YY,
Corporate Services,Service Performance,10/06/2022,Minor Works,Pfi,Calderdale Hospital Spc Ltd,3656,"37,025.10 ",Removal of MRI Scanner,M20 2YY,
Corporate Services,Service Performance,01/06/2022,Rates,Properties,Calderdale Metropolitan Borough Council,25202291017616,"73,387.00 ","Business rates for Calderdale Royal Hospital invoice 25202291017616	",HX1 1TP,
Recharges,Recharges,24/06/2022,Office Equipment And Materials : Purchase,Recharges,Canon (UK) Ltd,402389291,"38,537.51","QUARTERLY RENTAL COST AS PER BELOW•	New devices £18 768.00 per quarter•	Software and Professional Services £4 064.45 per quarter•	Software support £1 593.22 per quarter•	MPS services £7 962.93 per quarter•	Retained devices £6 148.91",RH2 8BF,
Recharges,Recharges,24/06/2022,Office Equipment And Materials : Purchase,Recharges,Canon (UK) Ltd,402389291,"22,690.74",COST PER COPY QUARTERLY  ESTIMATED COST - TO BE RECONCILED AT END OF 1ST YEAR ,RH2 8BF,
Corporate Services,Corporate Services,05/06/2022,Professional Fees,Corporate Services,Care Quality Commission,43126754,"30,805.40 ",Annual Fee in 10 installments 30 805.40 each,WF3 1WE,
Balance Sheet,Fixed Assets,24/06/2022,Additions - Assets Under Construction,Capital (Surgical),Carl Zeiss Ltd,5140576236,"81,945.77 ",HFA3 INSTRUMENT 860  consisting of HFA3 Model 860 Version 1.5 Power Table 230V UNAS LIC OPV IOD EXPORT Breath Shield AC600 MU MIMO Adapter DWA-171 HP COLOR LASERJET PRO M255nw PRINTER DICOM connection to CZM instrument (v3),CB23 6DW,
Health Informatics,Modernisation Programme,01/06/2022,Computer Software / License  Fees,Modernisation Programme,Cerner Ltd,102069165,"63,112.80 ",Cerner - Table 12: RHO Recurring Charges. Monthly  commencing from the Effective Date and continuing until the end of the Term £52 594 per month x 12 for 2022,W2 1AF,
Balance Sheet,L2 Long Term Creditors,10/06/2022,Lease Liabilities under IFRS 16 > 1 year,Finance Leases,Chg-Meridian Uk Ltd,7080199,"51,092.27 ",Lease - Philips Healthcare Ingenia 1.5T MRI Scanner,TW20 9AB,
Balance Sheet,Fixed Assets,24/06/2022,Additions - Assets Under Construction,Capital (Estates),Clifford Cooper & Sons Ltd,62234,"76,074.82 ",LEARNING CENTRE REPROVISION - TO SUB-BASEMENT FLOOR AS PER TENDER ,CM20 9GY,
Balance Sheet,L2 Current Assets,01/06/2022,Finished Processed Goods,Stock & Work In Progress,Csl Behring Uk Ltd,994046086,"76,200.00 ",Pharmaceutical purchase,RH16 1AH,
Balance Sheet,Fixed Assets,24/06/2022,Additions - Assets Under Construction,CAPITAL (Reconfig CRH),Darwin Group Limited,5395228,"37,166.52 ",CRH MODULAR LEARNING CENTRE - COMMENCEMENT OF PRE CONSTRUCTION DESIGN WORKS AS AGREED ,SY4 4EA,
Corporate Services,Central Operations Team CORP,01/06/2022,B5 Agency Nursing,Central Operations Team CORP,Direct Healthcare 24 Plc,100422CH,480.42,B5 Agency Nursing,HA1 1BE,
Medical Division,Medical Specialities,01/06/2022,B5 Agency Nursing,Gastroenterology,Direct Healthcare 24 Plc,100422CH,3328.97,B5 Agency Nursing,HA1 1BE,
Medical Division,Acute Medical,01/06/2022,B5 Agency Nursing,General Medicine,Direct Healthcare 24 Plc,100422CH,4000.45,B5 Agency Nursing,HA1 1BE,
Surgery & Anaesthetics,General Surgery,01/06/2022,B5 Agency Nursing,General Surgery,Direct Healthcare 24 Plc,100422CH,489.33,B5 Agency Nursing,HA1 1BE,
Medical Division,Acute Medical,01/06/2022,B5 Agency Nursing,Geriatric Medicine,Direct Healthcare 24 Plc,100422CH,6486.26,B5 Agency Nursing,HA1 1BE,
Medical Division,Integrated Medical Specialities,01/06/2022,B5 Agency Nursing,Ims Stroke / Rehabilitation,Direct Healthcare 24 Plc,100422CH,2336.54,B5 Agency Nursing,HA1 1BE,
Medical Division,Medical Specialities,01/06/2022,B5 Agency Nursing,Respiratory,Direct Healthcare 24 Plc,100422CH,2845.01,B5 Agency Nursing,HA1 1BE,
Central & Technical,Tech Accounting,01/06/2022,B5 Agency Nursing,Tech Accounting,Direct Healthcare 24 Plc,100422CH,480.43,B5 Agency Nursing,HA1 1BE,
Surgery & Anaesthetics,Orthopaedics,01/06/2022,B5 Agency Nursing,Trauma & Orthopaedics,Direct Healthcare 24 Plc,100422CH,966.2,B5 Agency Nursing,HA1 1BE,
CHS Estates,L2 Estates,16/06/2022,Electricity,Estates Operations,EDF Energy Customers Ltd,000012088777,"174,198.44 ",Mains Electric for Calderdale Royal Hospital,W1T 4EZ,
Health Informatics,Corporate And Operations,01/06/2022,Computer Software / License  Fees,It Support,Egton Medical Information Systems Ltd,EM-SINV079948,"60,000.00 ",EMIS - Digital Consent application for Surgical procedures and treatment. Remote consent and personalised information supporting informed  shared decisions. 24/12/21 to 23/12/22 ,LS19 6BA,
CHS Facilities,L2 Facilities,13/06/2022,External Contracts : Laundry,Laundry,Elis UK Limited,SN3479476,"96,153.23 ",laundry contract for hired linen for Calderdale & Huddersfield.,RG24 8JP,
CHS Facilities,L2 Facilities,24/06/2022,External Contracts : Laundry,Laundry,Elis UK Limited,SN3485957,"96,216.95 ",laundry contract for hired linen for Calderdale & Huddersfield.,RG24 8JP,
Balance Sheet,Fixed Assets,01/06/2022,Additions - Assets Under Construction,Capital (Surgical),Fresenius Kabi Ltd,914456448,"46,800.00 ",MRI Guard Agilia ,WA7 1NT,
Corporate Services,Corporate Services,24/06/2022,Advertising and Staff Recruitment,Corporate Services,Gatenbysanderson Ltd,63555,"25,392.00 ",SPECIALIST AGENCY/SUPPLIER SUPPORT FOR THE RECRUITMENT OF DIRECTOR OF CORPORATE AFFAIRS AND CHIEF NURSE,LS1 2HL,
CHS Estates,L2 Estates,10/06/2022,Med Surg Eqpt Mtce Contracts,Management Estates,Haemonetics Ltd,514948,"29,636.40 ",Premium Maintenance for 3 x BloodTrack Kiosks & 2 x HaemoBanks plus Software Support.Agreement Commencing - 31st March 2022 - 30th March 2023,WD25 7GS,
Balance Sheet,Fixed Assets,24/06/2022,Additions - Assets Under Construction,Capital (His),Insight Direct (Uk) Ltd,2100219497,"94,687.20 ",Zebra TC52 Healthcare Mobile Computerincludes 5 year warranty,M5 3NN,
Balance Sheet,Fixed Assets,24/06/2022,Additions - Assets Under Construction,Capital (His),Insight Direct (Uk) Ltd,2100219498,"1,000.00",Qln220/ZQ610/620 Healthcare spare smart battery,M5 3NN,
Balance Sheet,Fixed Assets,24/06/2022,Additions - Assets Under Construction,Capital (His),Insight Direct (Uk) Ltd,2100219498,"53,907.00",Zebra DS8178-HC Handheld Barcode Scanner3 year warranty ,M5 3NN,
Balance Sheet,Fixed Assets,24/06/2022,Additions - Assets Under Construction,Capital (His),Insight Direct (Uk) Ltd,2100219498,"5,260.40",Zebra TC52 Healthcare Mobile Computerincludes 5 year warranty,M5 3NN,
Balance Sheet,Fixed Assets,24/06/2022,Additions - Assets Under Construction,Capital (His),Insight Direct (Uk) Ltd,2100219498,"40,390.50",Zebra ZQ610-HC - Mobile Printer - Healthcare Version 3 year warranty,M5 3NN,
Balance Sheet,Fixed Assets,24/06/2022,Additions - Assets Under Construction,Capital (His),Insight Direct (Uk) Ltd,2100219498,"4,125.00",ZQ610-HC - AC adaptor charger,M5 3NN,
Balance Sheet,Fixed Assets,24/06/2022,Additions - Assets Under Construction,Capital (Fss),Insight Direct (Uk) Ltd,2100219499,"10,781.25",Zebra DS8178-HC Handheld Barcode Scanner Zebra ZQ610-HC - Mobile Printer - Healthcare Version Includes 3 year warranty,M5 3NN,
Balance Sheet,Fixed Assets,24/06/2022,Additions - Assets Under Construction,Capital (His),Insight Direct (Uk) Ltd,2100219500,"321,876.00",Zebra TC26-HC Mobile Computer - Healthcare WWAN ,M5 3NN,
Balance Sheet,Fixed Assets,24/06/2022,Additions - Assets Under Construction,Capital (His),Insight Direct (Uk) Ltd,2100219500,"8,031.00",PWR-WUA5V12W0GB-KITPower Supply - UK PlugUSB Power Supply  100-240 VAC Input with UK plug  Output = 5 V  2.5 AIncludes - CBL-TC5X-USBC2A-01 USB C Cable),M5 3NN,
Balance Sheet,Fixed Assets,24/06/2022,Additions - Assets Under Construction,Capital (Estates),Integrated Health Projects,22040039,"165,931.75 ",Learning Centre Demolition works 2020/21,WD24 4WW,
Balance Sheet,L2 Current Assets,17/06/2022,Finished Processed Goods,Stock & Work In Progress,Janssen-Cilag Ltd,930823675,"35,769.60 ",Pharmaceutical purchase,HP12 4EG,
Balance Sheet,L2 Current Assets,17/06/2022,Finished Processed Goods,Stock & Work In Progress,Janssen-Cilag Ltd,930829102,"35,769.60 ",Pharmaceutical purchase,HP12 4EG,
Balance Sheet,L2 Current Assets,17/06/2022,Finished Processed Goods,Stock & Work In Progress,Janssen-Cilag Ltd,930834240,"35,769.60 ",Pharmaceutical purchase,HP12 4EG,
Balance Sheet,L2 Current Assets,17/06/2022,Finished Processed Goods,Stock & Work In Progress,Janssen-Cilag Ltd,930841269,"35,769.60 ",Pharmaceutical purchase,HP12 4EG,
Balance Sheet,L2 Current Assets,24/06/2022,Finished Processed Goods,Stock & Work In Progress,Janssen-Cilag Ltd,930846360,"35,769.60 ",Pharmaceutical purchase,HP12 4EG,
Balance Sheet,L2 Current Assets,24/06/2022,Finished Processed Goods,Stock & Work In Progress,Janssen-Cilag Ltd,930852294,"35,769.60 ",Pharmaceutical purchase,HP12 4EG,
Balance Sheet,Fixed Assets,01/06/2022,Additions - Assets Under Construction,Capital (Estates),Kingfisher UPVC Windows and Doors Ltd,J0033884,"80,411.11 ",HRI - SUB-BASEMENT FLOOR - SUPPLY AND INSTALLATION OF ALUMINIUM WINDOWS  DOORS AND CURTAIN WALLING TO REPLACE EXISTING ROTTEN WOODEN FRAMES AS PER YOUR QUOTE,BD11 1NQ,
Estates & Facilities,Estates,01/06/2022,Rates,Estates Operations,Kirklees Council,969286425_2022,"43,093.00 ","business rates for Huddersfield Royal Infirmary invoice 969286425_2022	",HD1 2NF,
CHS Procurement & Materials Management,Procurement & Materials Management,10/06/2022,Books Journals and Subscriptions,Procurement & Materials Management,Leeds And York Partnership NHS Foundation Trust,997237,"30,000.00 ",STAKEHOLDER FEES/PAYS RETAINED (NHS)NOE CPC Membership fee for the annual period 01Apr 22 - 31 Mar 23,WF3 1WE,
Balance Sheet,Fixed Assets,10/06/2022,Additions - Assets Under Construction,CAPITAL (Reconfig HRI),Lend Lease Consulting (Emea) Ltd,14100018393,"43,783.20 ",ED DEVELOPMENT - PROJECT FEES FOR THE PERIOD OF 04/02/22 TO 15/04/2022 AS PER YOUR QUOTE DATED 15/03/22,HA2 0EE,
Balance Sheet,Fixed Assets,01/06/2022,Additions - Assets Under Construction,Capital (Estates),Lend Lease Consulting (Emea) Ltd,14100018455,"26,102.40 ",HRI - VARIATION - LENDLEASE FEES FOR THE MANAGMENT OF THE LEARNING CENTRE / NURSES HOME DEMOLITION AS PER YOUR QUOTE DATED 15/03/22,HA2 0EE,
Families & Specialist Services,Radiology,24/06/2022,Imaging Equipment Purchases,Rad General,Mid Yorkshire Hospitals NHS Trust,1600020250,"29,100.00 ",regional imaging collaborative sharing solution Qtr 1,WF1 4DG,
Balance Sheet,Fixed Assets,17/06/2022,Additions - Assets Under Construction,CAPITAL (Reconfig CRH),Mott Macdonald Ltd,100507490,"445,997.81 ",CALDERDALE ROYAL HOSPITAL ENABLING WORKS - RECONFIGURATIONENGINEERING CONSULTANCY SERVICESCONTRACT START DATE: 21ST FEBRAURY 2022CONTRACT END DATE: 20TH FEBRUARY 2023,S1 2JY,
Families & Specialist Services,Pathology,15/06/2022,Blood Products,Blood Sciences,NHS Blood And Transplant,7005469,"85,109.73 ",MONTHLY CONTRACT CHARGE BLOOD & COMPONENTS,LS15 7TW,
Families & Specialist Services,Pathology,15/06/2022,Blood Products,Blood Sciences,NHS Blood And Transplant,7005470,"32,812.05 ",MONTHLY CONTRACT CHARGE BLOOD & COMPONENTS,LS15 7TW,
Corporate Services,Service Performance,01/06/2022,Contract : Other External,Properties,NHS Property Services Ltd,H546110,"17,940.15",Brighouse Health Centre Brighouse Health Centre - Client FM Services CHFT,EC2V 7NG,
Corporate Services,Service Performance,01/06/2022,Contract : Other External,Properties,NHS Property Services Ltd,H546110,"14,960.15",Brighouse Health Centre Brighouse Health Centre - Tenant Service Charge & Additional CHFT Sums,EC2V 7NG,
Corporate Services,Quality,15/06/2022,Clinical Negligence,Quality,NHS Resolution,SICX408997,"791,186.30 ",Clinical Negligence provision,SW1W 9SZ,
Families & Specialist Services,Womens,15/06/2022,Clinical Negligence,Womens Management,NHS Resolution,SICX408997,"857,768.00 ",Clinical Negligence provision,SW1W 9SZ,
Corporate Services,Quality,15/06/2022,Insurance Costs,Quality,NHS Resolution,SICX408997,"20,850.40 ",Clinical Negligence provision,SW1W 9SZ,
CHS Balance Sheet,Current Liabilities,01/06/2022,Non- NHS  Trade Creditors < One Year,Other Creditors,NHS Supply Chain,1123033853,"264,858.09 ",Goods delivered week ending 20/05/2022,DE55 4QJ,
CHS Balance Sheet,Current Liabilities,01/06/2022,Non- NHS  Trade Creditors < One Year,Other Creditors,NHS Supply Chain,1123042163,"332,536.39 ",Goods delivered week ending 27/05/2022,DE55 4QJ,
CHS Balance Sheet,Current Liabilities,10/06/2022,Non- NHS  Trade Creditors < One Year,Other Creditors,NHS Supply Chain,1123046017,"176,085.24 ",Goods delivered week ending 03/06/2022,DE55 4QJ,
Balance Sheet,L2 Current Assets,01/06/2022,Finished Processed Goods,Stock & Work In Progress,Novartis Pharmaceuticals Uk Ltd,92603665,"42,739.20 ",Pharmaceutical purchase,GU16 7SR,
Balance Sheet,L2 Current Assets,01/06/2022,Finished Processed Goods,Stock & Work In Progress,Novartis Pharmaceuticals Uk Ltd,92604510,"42,739.20 ",Pharmaceutical purchase,GU16 7SR,
Balance Sheet,L2 Current Assets,10/06/2022,Finished Processed Goods,Stock & Work In Progress,Novartis Pharmaceuticals Uk Ltd,92607368,"42,739.20 ",Pharmaceutical purchase,GU16 7SR,
Balance Sheet,L2 Current Assets,17/06/2022,Finished Processed Goods,Stock & Work In Progress,Octapharma Ltd,5208043808,"64,500.00 ",Pharmaceutical purchase,M2 1AB,
Surgery & Anaesthetics,Surgical Divisional Support,24/06/2022,Med Surg Eqpt Disposable,Support Services,Olympus Keymed,CD2751814,301.00,Sony UP Printer Cable Set,SS2 5QH,
Balance Sheet,Fixed Assets,24/06/2022,Additions - Assets Under Construction,Capital (Surgical),Olympus Keymed,CD2751814,"9,385.90",UCR - WM-P2 SERIES - PIN Index Flexi Camera Stack,SS2 5QH,
Surgery & Anaesthetics,Surgical Divisional Support,24/06/2022,Med Surg Eqpt Disposable,Support Services,Olympus Keymed,CD2751814,"2,501.34",OFP-2 STARTER SET AUX CHAN DISP - Flex Camera Stack,SS2 5QH,
Surgery & Anaesthetics,Surgical Divisional Support,24/06/2022,Med Surg Eqpt Disposable,Support Services,Olympus Keymed,CD2751814,"1,895.98",Sony UP-25MD with Print Pack - Flex Camera Stack,SS2 5QH,
Surgery & Anaesthetics,Surgical Divisional Support,24/06/2022,Med Surg Eqpt Disposable,Support Services,Olympus Keymed,CD2751814,"80,717.80",Evis X1 Wireless System with CV-290 - Flex Camera Stack,SS2 5QH,
Corporate Services,Service Performance,01/06/2022,Contract : Other External,Properties,Pennine Property Partnership Llp,SI0000016,"135,655.20 ",Recharge of April  May & June 2022 Service Charge,S11 9PD,
Balance Sheet,L2 Current Assets,10/06/2022,Finished Processed Goods,Stock & Work In Progress,Qualasept Ltd,SQS0138169,"28,350.00 ",Pharmaceutical purchase,SN13 9RG,
Medical Division,Emergency Medicine,01/06/2022,B5 Agency Nursing,A&E Nursing,Red Group Personnel Ltd,918CALD,"7,266.91 ",B5 Agency Nursing,HA3 5AB,
Medical Division,Medical Specialities,01/06/2022,B5 Agency Nursing,Cardiology,Red Group Personnel Ltd,918CALD,"1,207.96 ",B5 Agency Nursing,HA3 5AB,
Corporate Services,Central Operations Team CORP,01/06/2022,B5 Agency Nursing,Central Operations Team CORP,Red Group Personnel Ltd,918CALD,653.84 ,B5 Agency Nursing,HA3 5AB,
Medical Division,Medical Specialities,01/06/2022,B5 Agency Nursing,Gastroenterology,Red Group Personnel Ltd,918CALD,695.42 ,B5 Agency Nursing,HA3 5AB,
Medical Division,Acute Medical,01/06/2022,B5 Agency Nursing,General Medicine,Red Group Personnel Ltd,918CALD,"7,229.55 ",B5 Agency Nursing,HA3 5AB,
Surgery & Anaesthetics,General Surgery,01/06/2022,B5 Agency Nursing,General Surgery,Red Group Personnel Ltd,918CALD,689.98 ,B5 Agency Nursing,HA3 5AB,
Medical Division,Acute Medical,01/06/2022,B5 Agency Nursing,Geriatric Medicine,Red Group Personnel Ltd,918CALD,"7,195.92 ",B5 Agency Nursing,HA3 5AB,
Medical Division,Integrated Medical Specialities,01/06/2022,B5 Agency Nursing,Ims Stroke / Rehabilitation,Red Group Personnel Ltd,918CALD,"3,130.15 ",B5 Agency Nursing,HA3 5AB,
Surgery & Anaesthetics,Operating Services,01/06/2022,B5 Agency Nursing,Operating Services,Red Group Personnel Ltd,918CALD,"3,891.58 ",B5 Agency Nursing,HA3 5AB,
Medical Division,Medical Specialities,01/06/2022,B5 Agency Nursing,Respiratory,Red Group Personnel Ltd,918CALD,"1,196.05 ",B5 Agency Nursing,HA3 5AB,
Medical Division,Emergency Medicine,01/06/2022,B5 Agency Nursing,A&E Nursing,Red Group Personnel Ltd,919CALD,7492.82,B5 Agency Nursing,HA3 5AB,
Medical Division,Medical Specialities,01/06/2022,B5 Agency Nursing,Cardiology,Red Group Personnel Ltd,919CALD,598.03,B5 Agency Nursing,HA3 5AB,
Surgery & Anaesthetics,Critical Care,01/06/2022,B5 Agency Nursing,Critical Care,Red Group Personnel Ltd,919CALD,1555.52,B5 Agency Nursing,HA3 5AB,
Medical Division,Medical Specialities,01/06/2022,B5 Agency Nursing,Gastroenterology,Red Group Personnel Ltd,919CALD,1233.38,B5 Agency Nursing,HA3 5AB,
Medical Division,Acute Medical,01/06/2022,B5 Agency Nursing,General Medicine,Red Group Personnel Ltd,919CALD,10859.1,B5 Agency Nursing,HA3 5AB,
Surgery & Anaesthetics,General Surgery,01/06/2022,B5 Agency Nursing,General Surgery,Red Group Personnel Ltd,919CALD,1349,B5 Agency Nursing,HA3 5AB,
Medical Division,Acute Medical,01/06/2022,B5 Agency Nursing,Geriatric Medicine,Red Group Personnel Ltd,919CALD,5603.42,B5 Agency Nursing,HA3 5AB,
Medical Division,Integrated Medical Specialities,01/06/2022,B5 Agency Nursing,Ims Stroke / Rehabilitation,Red Group Personnel Ltd,919CALD,3002,B5 Agency Nursing,HA3 5AB,
Surgery & Anaesthetics,Operating Services,01/06/2022,B5 Agency Nursing,Operating Services,Red Group Personnel Ltd,919CALD,2311.54,B5 Agency Nursing,HA3 5AB,
Medical Division,Medical Specialities,01/06/2022,B5 Agency Nursing,Respiratory,Red Group Personnel Ltd,919CALD,1236.51,B5 Agency Nursing,HA3 5AB,
Surgery & Anaesthetics,Orthopaedics,01/06/2022,B5 Agency Nursing,Trauma & Orthopaedics,Red Group Personnel Ltd,919CALD,682.04,B5 Agency Nursing,HA3 5AB,
Medical Division,Emergency Medicine,10/06/2022,B5 Agency Nursing,A&E Nursing,Red Group Personnel Ltd,920CALD,"7,106.91 ",B5 Agency Nursing,HA3 5AB,
Medical Division,Medical Specialities,10/06/2022,B5 Agency Nursing,Cardiology,Red Group Personnel Ltd,920CALD,"1,966.61 ",B5 Agency Nursing,HA3 5AB,
Medical Division,Medical Specialities,10/06/2022,B5 Agency Nursing,Gastroenterology,Red Group Personnel Ltd,920CALD,635.35 ,B5 Agency Nursing,HA3 5AB,
Medical Division,Acute Medical,10/06/2022,B5 Agency Nursing,General Medicine,Red Group Personnel Ltd,920CALD,"12,213.52 ",B5 Agency Nursing,HA3 5AB,
Surgery & Anaesthetics,General Surgery,10/06/2022,B5 Agency Nursing,General Surgery,Red Group Personnel Ltd,920CALD,"1,201.18 ",B5 Agency Nursing,HA3 5AB,
Medical Division,Acute Medical,10/06/2022,B5 Agency Nursing,Geriatric Medicine,Red Group Personnel Ltd,920CALD,"3,292.69 ",B5 Agency Nursing,HA3 5AB,
Medical Division,Integrated Medical Specialities,10/06/2022,B5 Agency Nursing,Ims Stroke / Rehabilitation,Red Group Personnel Ltd,920CALD,"4,338.11 ",B5 Agency Nursing,HA3 5AB,
Families & Specialist Services,Childrens,10/06/2022,B5 Agency Nursing,Inpatients Paediatrics,Red Group Personnel Ltd,920CALD,906.77 ,B5 Agency Nursing,HA3 5AB,
Surgery & Anaesthetics,Operating Services,10/06/2022,B5 Agency Nursing,Operating Services,Red Group Personnel Ltd,920CALD,"5,757.27 ",B5 Agency Nursing,HA3 5AB,
Medical Division,Medical Specialities,10/06/2022,B5 Agency Nursing,Respiratory,Red Group Personnel Ltd,920CALD,"3,088.55 ",B5 Agency Nursing,HA3 5AB,
Surgery & Anaesthetics,Orthopaedics,10/06/2022,B5 Agency Nursing,Trauma & Orthopaedics,Red Group Personnel Ltd,920CALD,969.08 ,B5 Agency Nursing,HA3 5AB,
Medical Division,Emergency Medicine,24/06/2022,B5 Agency Nursing,A&E Nursing,Red Group Personnel Ltd,921CALD,"10,158.00 ",B5 Agency Nursing,HA3 5AB,
Medical Division,Medical Specialities,24/06/2022,B5 Agency Nursing,Cardiology,Red Group Personnel Ltd,921CALD,"1,148.88 ",B5 Agency Nursing,HA3 5AB,
Medical Division,Medical Specialities,24/06/2022,B5 Agency Nursing,Gastroenterology,Red Group Personnel Ltd,921CALD,"1,184.38 ",B5 Agency Nursing,HA3 5AB,
Medical Division,Acute Medical,24/06/2022,B5 Agency Nursing,General Medicine,Red Group Personnel Ltd,921CALD,"8,980.98 ",B5 Agency Nursing,HA3 5AB,
Surgery & Anaesthetics,General Surgery,24/06/2022,B5 Agency Nursing,General Surgery,Red Group Personnel Ltd,921CALD,727.03 ,B5 Agency Nursing,HA3 5AB,
Medical Division,Acute Medical,24/06/2022,B5 Agency Nursing,Geriatric Medicine,Red Group Personnel Ltd,921CALD,"3,642.37 ",B5 Agency Nursing,HA3 5AB,
Medical Division,Integrated Medical Specialities,24/06/2022,B5 Agency Nursing,Ims Stroke / Rehabilitation,Red Group Personnel Ltd,921CALD,"2,479.98 ",B5 Agency Nursing,HA3 5AB,
Surgery & Anaesthetics,Operating Services,24/06/2022,B5 Agency Nursing,Operating Services,Red Group Personnel Ltd,921CALD,"4,802.01 ",B5 Agency Nursing,HA3 5AB,
Medical Division,Medical Specialities,24/06/2022,B5 Agency Nursing,Respiratory,Red Group Personnel Ltd,921CALD,"3,067.93 ",B5 Agency Nursing,HA3 5AB,
Surgery & Anaesthetics,Orthopaedics,24/06/2022,B5 Agency Nursing,Trauma & Orthopaedics,Red Group Personnel Ltd,921CALD,550.51 ,B5 Agency Nursing,HA3 5AB,
Balance Sheet,L2 Current Assets,24/06/2022,Finished Processed Goods,Stock & Work In Progress,Roche Products Ltd,1322238251,"74,453.46 ",Pharmaceutical purchase,AL7 1TW,
Balance Sheet,L2 Current Assets,24/06/2022,Finished Processed Goods,Stock & Work In Progress,Roche Products Ltd,1322238979,"36,367.87 ",Pharmaceutical purchase,AL7 1TW,
Balance Sheet,L2 Current Assets,24/06/2022,Finished Processed Goods,Stock & Work In Progress,Roche Products Ltd,1322241081,"27,647.82 ",Pharmaceutical purchase,AL7 1TW,
Balance Sheet,L2 Current Assets,24/06/2022,Finished Processed Goods,Stock & Work In Progress,Roche Products Ltd,1322241258,"33,854.11 ",Pharmaceutical purchase,AL7 1TW,
Balance Sheet,L2 Current Assets,24/06/2022,Other Debtors < One Year,Other Debtors,Select Medical Ltd,141356,"64,605.00 ",Pure air 8 Acute  -  product code SM013A,BB1 5NA,
Families & Specialist Services,Radiology,01/06/2022,Med Surg Eqpt Leasing,Mri,Sg Radiology & Associates Ltd,SI-2660,"58,080.00 ",lease of two SG mobile MRI units for CRH,WF1 3QQ,
Families & Specialist Services,Radiology,01/06/2022,Med Surg Eqpt Leasing,Mri,Sg Radiology & Associates Ltd,SI-2661,"58,080.00 ",lease of two SG mobile MRI units for CRH,WF1 3QQ,
Families & Specialist Services,Radiology,17/06/2022,Med Surg Eqpt Leasing,Mri,Sg Radiology & Associates Ltd,SI-2675,"39,600.00 ",lease of two SG mobile MRI units for CRH,WF1 3QQ,
Families & Specialist Services,Radiology,17/06/2022,Med Surg Eqpt Leasing,Mri,Sg Radiology & Associates Ltd,SI-2676,"39,600.00 ",lease of two SG mobile MRI units for CRH,WF1 3QQ,
Families & Specialist Services,Pathology,17/06/2022,Laboratory Chemicals,Path Chemical Pathology,Siemens Healthcare Diagnostics Ltd,114601918,"156,629.44 ",Laboratory managed Service Contract,GU16 8QD,
Families & Specialist Services,Pathology,17/06/2022,Laboratory Chemicals,Path Chemical Pathology,Siemens Healthcare Diagnostics Ltd,114601919,"156,629.44 ",Laboratory managed Service Contract,GU16 8QD,
Families & Specialist Services,Pathology,17/06/2022,Laboratory Chemicals,Path Chemical Pathology,Siemens Healthcare Diagnostics Ltd,114601920,"156,629.44 ",Laboratory managed Service Contract,GU16 8QD,
Families & Specialist Services,Pathology,17/06/2022,Laboratory Chemicals,Path Chemical Pathology,Siemens Healthcare Diagnostics Ltd,114601921,"156,629.44 ",Laboratory managed Service Contract,GU16 8QD,
Families & Specialist Services,Pathology,17/06/2022,Laboratory Chemicals,Path Chemical Pathology,Siemens Healthcare Diagnostics Ltd,114603057,"156,629.44 ",Laboratory managed Service Contract,GU16 8QD,
Families & Specialist Services,Pathology,17/06/2022,Laboratory Chemicals,Path Chemical Pathology,Siemens Healthcare Diagnostics Ltd,114603057,"156,629.44 ",Laboratory managed Service Contract,GU16 8QD,
Families & Specialist Services,Pathology,01/06/2022,Laboratory Chemicals,Path Chemical Pathology,Siemens Healthcare Ltd,114586158,"78,247.88 ",Laboratory managed Service Contract,M20 2UR,
Health Informatics,Corporate And Operations,17/06/2022,Computer Maintenance,Professional Services,Softcat Plc,INV02595692,"113,000.00","""Splunk Enterprise - Term License with Standard Success Plan – 125GB/day  5 year term											 - Annual Payment Yr 1 2020-2021 ""				",SL7 1TB,
Balance Sheet,Fixed Assets,17/06/2022,Additions - Assets Under Construction,Capital (Estates),Spaceguard Ltd,5006,"26,220.77 ",Purchase of 14 (Fourteen) Workbenches as per Quote - Including delivery to Calderdale Royal Hospital  Halifax.,HU7 0YQ,
Balance Sheet,Fixed Assets,17/06/2022,Additions - Assets Under Construction,Capital (His),Spacelabs Healthcare Ltd,IN304866,"38,020.80 ",Sentinel 11.5.x (upgrade discount) plus LifeScreenPro (3yr) - £30 454.20,SG13 7DT,
Community Division,Community Therapies,01/06/2022,Patients Appliances : Purchase,Patient Appliances,Taycare Medical Ltd,21239,"25,299.22 ",supply of specialist orthotic products,LS12 6LL,
Community Division,Community Therapies,01/06/2022,Patients Appliances : Purchase,Patient Appliances,Taycare Medical Ltd,21240,"31,895.33 ",supply of specialist orthotic products,LS12 6LL,
Community Division,Community Therapies,17/06/2022,Patients Appliances : Purchase,Patient Appliances,Taycare Medical Ltd,21307,"30,787.47 ",supply of specialist orthotic products,LS12 6LL,
Families & Specialist Services,Radiology,30/06/2022,Contractual Clinical Services,Rad General,Telemedicine Clinic Ltd,20220004,"94,030.54 ",Outsourced reporting ,B3 2RT,
Families & Specialist Services,Radiology,30/06/2022,Contractual Clinical Services,Rad General,Telemedicine Clinic Ltd,20220077,"85,685.80 ",Outsourced reporting ,B3 2RT,
CHS Facilities,L2 Facilities,17/06/2022,Contract : Premises Security,Security,The Leeds Teaching Hospitals NHS Trust,1410188866,"34,948.94 ",Annual Security Contract Fixed price as agreed,LS9 7TF,
CHS Facilities,L2 Facilities,17/06/2022,Contract : Premises Security,Security,The Leeds Teaching Hospitals NHS Trust,1410190056,"37,373.50 ",Annual Security Contract Fixed price as agreed,LS9 7TF,
Families & Specialist Services,Radiology,17/06/2022,Healthcare From Independent Sector,Ultrasound,This Is My: Ultrasound Services Ltd,INV-1065,"26,100.00 ",Outsourced Ultrasound services for April. 870 scans @ £30 each= £26100,LS11 5QN,
Medical Division,Emergency Medicine,01/06/2022,B5 Agency Nursing,A&E Nursing,Your Nurse Ltd,YNLX22,"7,265.53 ",B5 Agency Nursing,EC3V 0EH,
Corporate Services,Central Operations Team CORP,01/06/2022,B5 Agency Nursing,Central Operations Team CORP,Your Nurse Ltd,YNLX22,"3,116.24 ",B5 Agency Nursing,EC3V 0EH,
Surgery & Anaesthetics,Critical Care,01/06/2022,B5 Agency Nursing,Critical Care,Your Nurse Ltd,YNLX22,715.73 ,B5 Agency Nursing,EC3V 0EH,
Surgery & Anaesthetics,Head & Neck,01/06/2022,B5 Agency Nursing,Ent,Your Nurse Ltd,YNLX22,"2,539.94 ",B5 Agency Nursing,EC3V 0EH,
Medical Division,Medical Specialities,01/06/2022,B5 Agency Nursing,Gastroenterology,Your Nurse Ltd,YNLX22,"4,242.15 ",B5 Agency Nursing,EC3V 0EH,
Medical Division,Acute Medical,01/06/2022,B5 Agency Nursing,General Medicine,Your Nurse Ltd,YNLX22,"1,154.30 ",B5 Agency Nursing,EC3V 0EH,
Surgery & Anaesthetics,General Surgery,01/06/2022,B5 Agency Nursing,General Surgery,Your Nurse Ltd,YNLX22,"10,574.01 ",B5 Agency Nursing,EC3V 0EH,
Medical Division,Acute Medical,01/06/2022,B5 Agency Nursing,Geriatric Medicine,Your Nurse Ltd,YNLX22,"5,556.58 ",B5 Agency Nursing,EC3V 0EH,
Families & Specialist Services,Womens,01/06/2022,B5 Agency Nursing,Gynaecology,Your Nurse Ltd,YNLX22,715.71 ,B5 Agency Nursing,EC3V 0EH,
Medical Division,Integrated Medical Specialities,01/06/2022,B5 Agency Nursing,Ims Stroke / Rehabilitation,Your Nurse Ltd,YNLX22,577.15 ,B5 Agency Nursing,EC3V 0EH,
Medical Division,Integrated Medical Specialities,01/06/2022,B5 Agency Nursing,Medical Oncology,Your Nurse Ltd,YNLX22,"1,154.30 ",B5 Agency Nursing,EC3V 0EH,
Surgery & Anaesthetics,Operating Services,01/06/2022,B5 Agency Nursing,Operating Services,Your Nurse Ltd,YNLX22,"1,946.85 ",B5 Agency Nursing,EC3V 0EH,
Medical Division,Medical Specialities,01/06/2022,B5 Agency Nursing,Respiratory,Your Nurse Ltd,YNLX22,577.15 ,B5 Agency Nursing,EC3V 0EH,
Surgery & Anaesthetics,Orthopaedics,01/06/2022,B5 Agency Nursing,Trauma & Orthopaedics,Your Nurse Ltd,YNLX22,"6,312.89 ",B5 Agency Nursing,EC3V 0EH,
Medical Division,Emergency Medicine,01/06/2022,B5 Agency Nursing,A&E Nursing,Your Nurse Ltd,YNLX24,"8,633.31 ",B5 Agency Nursing,EC3V 0EH,
Corporate Services,Central Operations Team CORP,01/06/2022,B5 Agency Nursing,Central Operations Team CORP,Your Nurse Ltd,YNLX24,"2,356.84 ",B5 Agency Nursing,EC3V 0EH,
Surgery & Anaesthetics,Head & Neck,01/06/2022,B5 Agency Nursing,Ent,Your Nurse Ltd,YNLX24,637.90 ,B5 Agency Nursing,EC3V 0EH,
Medical Division,Medical Specialities,01/06/2022,B5 Agency Nursing,Gastroenterology,Your Nurse Ltd,YNLX24,"1,223.24 ",B5 Agency Nursing,EC3V 0EH,
Medical Division,Acute Medical,01/06/2022,B5 Agency Nursing,General Medicine,Your Nurse Ltd,YNLX24,"2,915.70 ",B5 Agency Nursing,EC3V 0EH,
Surgery & Anaesthetics,General Surgery,01/06/2022,B5 Agency Nursing,General Surgery,Your Nurse Ltd,YNLX24,"13,260.54 ",B5 Agency Nursing,EC3V 0EH,
Medical Division,Acute Medical,01/06/2022,B5 Agency Nursing,Geriatric Medicine,Your Nurse Ltd,YNLX24,"11,693.29 ",B5 Agency Nursing,EC3V 0EH,
Medical Division,Integrated Medical Specialities,01/06/2022,B5 Agency Nursing,Ims Stroke / Rehabilitation,Your Nurse Ltd,YNLX24,"1,205.55 ",B5 Agency Nursing,EC3V 0EH,
Families & Specialist Services,Childrens,01/06/2022,B5 Agency Nursing,Inpatients Paediatrics,Your Nurse Ltd,YNLX24,"1,431.46 ",B5 Agency Nursing,EC3V 0EH,
Medical Division,Integrated Medical Specialities,01/06/2022,B5 Agency Nursing,Medical Oncology,Your Nurse Ltd,YNLX24,"1,162.07 ",B5 Agency Nursing,EC3V 0EH,
Surgery & Anaesthetics,Operating Services,01/06/2022,B5 Agency Nursing,Operating Services,Your Nurse Ltd,YNLX24,"2,144.36 ",B5 Agency Nursing,EC3V 0EH,
Medical Division,Medical Specialities,01/06/2022,B5 Agency Nursing,Respiratory,Your Nurse Ltd,YNLX24,584.92 ,B5 Agency Nursing,EC3V 0EH,
Surgery & Anaesthetics,Orthopaedics,01/06/2022,B5 Agency Nursing,Trauma & Orthopaedics,Your Nurse Ltd,YNLX24,"2,441.72 ",B5 Agency Nursing,EC3V 0EH,
Medical Division,Emergency Medicine,10/06/2022,B5 Agency Nursing,A&E Nursing,Your Nurse Ltd,YNLX25,9865.74,B5 Agency Nursing,EC3V 0EH,
Medical Division,Medical Specialities,10/06/2022,B5 Agency Nursing,Cardiology,Your Nurse Ltd,YNLX25,577.15,B5 Agency Nursing,EC3V 0EH,
Corporate Services,Central Operations Team CORP,10/06/2022,B5 Agency Nursing,Central Operations Team CORP,Your Nurse Ltd,YNLX25,1883.92,B5 Agency Nursing,EC3V 0EH,
Medical Division,Medical Specialities,10/06/2022,B5 Agency Nursing,Gastroenterology,Your Nurse Ltd,YNLX25,2367.62,B5 Agency Nursing,EC3V 0EH,
Medical Division,Acute Medical,10/06/2022,B5 Agency Nursing,General Medicine,Your Nurse Ltd,YNLX25,6469.48,B5 Agency Nursing,EC3V 0EH,
Surgery & Anaesthetics,General Surgery,10/06/2022,B5 Agency Nursing,General Surgery,Your Nurse Ltd,YNLX25,3706.85,B5 Agency Nursing,EC3V 0EH,
Medical Division,Acute Medical,10/06/2022,B5 Agency Nursing,Geriatric Medicine,Your Nurse Ltd,YNLX25,11875.37,B5 Agency Nursing,EC3V 0EH,
Surgery & Anaesthetics,Operating Services,10/06/2022,B5 Agency Nursing,Operating Services,Your Nurse Ltd,YNLX25,5332.68,B5 Agency Nursing,EC3V 0EH,
Medical Division,Medical Specialities,10/06/2022,B5 Agency Nursing,Respiratory,Your Nurse Ltd,YNLX25,1205.55,B5 Agency Nursing,EC3V 0EH,
Surgery & Anaesthetics,Orthopaedics,10/06/2022,B5 Agency Nursing,Trauma & Orthopaedics,Your Nurse Ltd,YNLX25,2412.85,B5 Agency Nursing,EC3V 0EH,
Medical Division,Emergency Medicine,17/06/2022,B5 Agency Nursing,A&E Nursing,Your Nurse Ltd,YNLX26,"9,951.77 ",B5 Agency Nursing,EC3V 0EH,
Medical Division,Medical Specialities,17/06/2022,B5 Agency Nursing,Cardiology,Your Nurse Ltd,YNLX26,628.40 ,B5 Agency Nursing,EC3V 0EH,
Corporate Services,Central Operations Team CORP,17/06/2022,B5 Agency Nursing,Central Operations Team CORP,Your Nurse Ltd,YNLX26,"1,412.38 ",B5 Agency Nursing,EC3V 0EH,
Medical Division,Medical Specialities,17/06/2022,B5 Agency Nursing,Gastroenterology,Your Nurse Ltd,YNLX26,"2,308.60 ",B5 Agency Nursing,EC3V 0EH,
Medical Division,Acute Medical,17/06/2022,B5 Agency Nursing,General Medicine,Your Nurse Ltd,YNLX26,"9,609.69 ",B5 Agency Nursing,EC3V 0EH,
Surgery & Anaesthetics,General Surgery,17/06/2022,B5 Agency Nursing,General Surgery,Your Nurse Ltd,YNLX26,"3,125.30 ",B5 Agency Nursing,EC3V 0EH,
Medical Division,Acute Medical,17/06/2022,B5 Agency Nursing,Geriatric Medicine,Your Nurse Ltd,YNLX26,"8,721.65 ",B5 Agency Nursing,EC3V 0EH,
Medical Division,Integrated Medical Specialities,17/06/2022,B5 Agency Nursing,Ims Stroke / Rehabilitation,Your Nurse Ltd,YNLX26,"1,731.45 ",B5 Agency Nursing,EC3V 0EH,
Medical Division,Integrated Medical Specialities,17/06/2022,B5 Agency Nursing,Medical Oncology,Your Nurse Ltd,YNLX26,577.15 ,B5 Agency Nursing,EC3V 0EH,
Surgery & Anaesthetics,Operating Services,17/06/2022,B5 Agency Nursing,Operating Services,Your Nurse Ltd,YNLX26,"4,969.06 ",B5 Agency Nursing,EC3V 0EH,
Corporate Services,Quality,17/06/2022,B5 Agency Nursing,Quality,Your Nurse Ltd,YNLX26,601.27 ,B5 Agency Nursing,EC3V 0EH,
Medical Division,Medical Specialities,17/06/2022,B5 Agency Nursing,Respiratory,Your Nurse Ltd,YNLX26,628.40 ,B5 Agency Nursing,EC3V 0EH,
Surgery & Anaesthetics,Orthopaedics,17/06/2022,B5 Agency Nursing,Trauma & Orthopaedics,Your Nurse Ltd,YNLX26,"4,148.79 ",B5 Agency Nursing,EC3V 0EH,
Medical Division,Emergency Medicine,24/06/2022,B5 Agency Nursing,A&E Nursing,Your Nurse Ltd,YNLX27,"11,426.75 ",B5 Agency Nursing,EC3V 0EH,
Medical Division,Medical Specialities,24/06/2022,B5 Agency Nursing,Cardiology,Your Nurse Ltd,YNLX27,"1,213.33 ",B5 Agency Nursing,EC3V 0EH,
Corporate Services,Central Operations Team CORP,24/06/2022,B5 Agency Nursing,Central Operations Team CORP,Your Nurse Ltd,YNLX27,"3,585.11 ",B5 Agency Nursing,EC3V 0EH,
Surgery & Anaesthetics,Critical Care,24/06/2022,B5 Agency Nursing,Critical Care,Your Nurse Ltd,YNLX27,"1,412.38 ",B5 Agency Nursing,EC3V 0EH,
Surgery & Anaesthetics,Head & Neck,24/06/2022,B5 Agency Nursing,Ent,Your Nurse Ltd,YNLX27,"1,210.31 ",B5 Agency Nursing,EC3V 0EH,
Medical Division,Medical Specialities,24/06/2022,B5 Agency Nursing,Gastroenterology,Your Nurse Ltd,YNLX27,"3,521.92 ",B5 Agency Nursing,EC3V 0EH,
Medical Division,Acute Medical,24/06/2022,B5 Agency Nursing,General Medicine,Your Nurse Ltd,YNLX27,"9,430.63 ",B5 Agency Nursing,EC3V 0EH,
Surgery & Anaesthetics,General Surgery,24/06/2022,B5 Agency Nursing,General Surgery,Your Nurse Ltd,YNLX27,"3,060.18 ",B5 Agency Nursing,EC3V 0EH,
Medical Division,Acute Medical,24/06/2022,B5 Agency Nursing,Geriatric Medicine,Your Nurse Ltd,YNLX27,"9,620.39 ",B5 Agency Nursing,EC3V 0EH,
Families & Specialist Services,Womens,24/06/2022,B5 Agency Nursing,Gynaecology,Your Nurse Ltd,YNLX27,733.50 ,B5 Agency Nursing,EC3V 0EH,
Medical Division,Integrated Medical Specialities,24/06/2022,B5 Agency Nursing,Ims Stroke / Rehabilitation,Your Nurse Ltd,YNLX27,"1,236.45 ",B5 Agency Nursing,EC3V 0EH,
Medical Division,Integrated Medical Specialities,24/06/2022,B5 Agency Nursing,Medical Oncology,Your Nurse Ltd,YNLX27,"1,155.91 ",B5 Agency Nursing,EC3V 0EH,
Surgery & Anaesthetics,Operating Services,24/06/2022,B5 Agency Nursing,Operating Services,Your Nurse Ltd,YNLX27,"4,965.88 ",B5 Agency Nursing,EC3V 0EH,
Medical Division,Medical Specialities,24/06/2022,B5 Agency Nursing,Respiratory,Your Nurse Ltd,YNLX27,"2,893.53 ",B5 Agency Nursing,EC3V 0EH,
Surgery & Anaesthetics,Orthopaedics,24/06/2022,B5 Agency Nursing,Trauma & Orthopaedics,Your Nurse Ltd,YNLX27,"1,857.64 ",B5 Agency Nursing,EC3V 0EH,
